fUST/lending_fUST_20240515
["ID","MTS","AMOUNT","RATE_DAILY","PERIOD"]
[327007893,1715707860748,-428.69686659,0.00034794,7]
[327007894,1715707860757,-500.0,0.00034794,7]
[327007895,1715707860766,-1042.24,0.00034794,7]
[327007896,1715707860776,-973.75,0.00034794,7]
[327007897,1715707860785,-500.0,0.00034794,7]
[327007898,1715707860898,-502.21,0.00034794,7]
[327007899,1715707860909,-500.0,0.00034794,7]
[327007900,1715707860919,-500.0,0.00034794,7]
[327007901,1715707860928,-6901.41,0.00034794,7]
[327007902,1715707860938,-500.0,0.00034794,7]
[327007903,1715707860948,-496.64111409,0.00034794,7]
[327007904,1715707860957,-500.0,0.00034794,7]
[327007905,1715707860966,-12129.44,0.00034794,7]
[327007906,1715707860975,-500.0,0.00034794,7]
[327007907,1715707860984,-23911.25,0.00034794,7]
[327007908,1715707860993,-500.0,0.00034794,7]
[327007909,1715707861002,-500.0,0.00034794,7]
[327007910,1715707861011,-10498.32,0.00034794,7]
[327007911,1715707861020,-500.0,0.00034794,7]
[327007912,1715707861029,-1230.33,0.00034794,7]
[327007913,1715707861038,-1230.33,0.00034794,7]
[327007914,1715707861048,-1230.33,0.00034794,7]
[327007915,1715707861057,-1407.29,0.00034794,7]
[327007916,1715707861066,-1230.33,0.00034794,7]
[327007917,1715707861075,-1230.33,0.00034794,7]
[327007918,1715707861084,-500.0,0.00034794,7]
[327007919,1715707861093,-1230.33,0.00034794,7]
[327007920,1715707861103,-1230.33,0.00034794,7]
[327007921,1715707861112,-500.0,0.00034794,7]
[327007922,1715707861121,-1230.33,0.00034794,7]
[327007923,1715707861131,-1230.33,0.00034794,7]
[327007924,1715707861140,-1230.33,0.00034794,7]
[327007925,1715707861149,-1230.33,0.00034794,7]
[327007926,1715707861160,-1230.33,0.00034794,7]
[327007927,1715707861169,-1230.33,0.00034794,7]
[327007928,1715707861178,-1230.33,0.00034794,7]
[327007929,1715707861187,-1230.33,0.00034794,7]
[327007930,1715707861196,-516.36,0.00034794,7]
[327007931,1715707861206,-1230.33,0.00034794,7]
[327007932,1715707861215,-1230.33,0.00034794,7]
[327007933,1715707861225,-1230.33,0.00034794,7]
[327007934,1715707861235,-1230.33,0.00034794,7]
[327007935,1715707861245,-524.56959931,0.00034794,7]
[327007936,1715707861254,-672.9,0.00034794,7]
[327007937,1715707861263,-1230.33,0.00034794,7]
[327007938,1715707861273,-1230.33,0.00034794,7]
[327007939,1715707861282,-1230.33,0.00034794,7]
[327007940,1715707861292,-1230.33,0.00034794,7]
[327007941,1715707861302,-1230.43467142,0.00034794,7]
[327007942,1715707861311,-500.0,0.00034794,7]
[327007943,1715707861320,-498.42624029,0.00034794,2]
[327007944,1715707861330,-379.05451378,0.00034794,7]
[327007945,1715707861339,-500.0,0.00034794,7]
[327007946,1715707861349,-500.0,0.00034794,7]
[327007947,1715707861359,-500.0,0.00034794,7]
[327007948,1715707861368,-500.0,0.00034794,7]
[327007949,1715707861378,-500.0,0.00034794,7]
[327007950,1715707861388,-702.13,0.00034794,7]
[327007951,1715707861396,-730.96,0.00034794,7]
[327007952,1715707861407,-1378.73,0.00034794,7]
[327007953,1715707861417,-500.0,0.00034794,7]
[327007954,1715707861426,-500.0,0.00034794,7]
[327007955,1715707861436,-500.0,0.00034794,2]
[327007956,1715707861450,-500.0,0.00034794,2]
[327007957,1715707861459,-500.0,0.00034794,7]
[327007958,1715707861469,-500.0,0.00034794,7]
[327007959,1715707861479,-500.0,0.00034794,7]
[327007960,1715707861488,-1278.11,0.00034794,7]
[327007961,1715707861498,-344.80665512,0.00034794,7]
[327007962,1715707861508,-3785.36,0.00034794,7]
[327007963,1715707861518,-507.55687721,0.00034794,7]
[327007964,1715707861530,-500.0,0.00034794,7]
[327007965,1715707861540,-462.16179861,0.00034794,7]
[327007966,1715707861549,-1965.6,0.00034794,7]
[327007967,1715707861559,-947.0,0.000348,3]
[327007968,1715707861568,-339.59880615,0.000349,2]
[327007969,1715707861577,-217.07,0.00034979,35]
[327007970,1715707861587,-311.38,0.00034979,35]
[327007971,1715707861596,-4650.69,0.00034979,35]
[327007972,1715707861607,-215.0,0.00034989,35]
[327007973,1715707861616,-4643.0,0.00034989,35]
[327007974,1715707861626,-309.0,0.00034989,35]
[327007975,1715707861635,-2544.31952677,0.0003499,2]
[327007976,1715707861645,-603.3824592,0.0003499,120]
[327007977,1715707861655,-211.83110561,0.00034998,4]
[327007978,1715707861665,-1411.8263769,0.00034999,5]
[327007979,1715707861673,-12675.983503,0.00034999,2]
[327007980,1715707861683,-9156465.44804698,0.00035,30]
[327007986,1715709008939,-192.32420404,0.00031251,31]
[327007987,1715709008980,-615.35159192,0.00031251,31]
[327008016,1715709033657,-222.06780435,0.0002,2]
[327008018,1715709033667,-670.4,0.00021808,2]
[327008020,1715709033676,-747.4,0.00021808,2]
[327008022,1715709033685,-154.7215013,0.000223,2]
[327008024,1715709033695,-154.79876161,0.000245,2]
[327008026,1715709033704,-166.666666,0.0002568,2]
[327008028,1715709033714,-166.666666,0.0002638,2]
[327008030,1715709033723,-187.03428599,0.0002708,2]
[327008032,1715709033732,-166.666666,0.00027081,2]
[327008034,1715709033741,-263.753697,0.00027123,2]
[327008036,1715709033751,-150.0,0.000275,2]
[327008038,1715709033759,-166.666666,0.00027781,2]
[327008040,1715709033768,-221.44137162,0.00028,2]
[327008042,1715709033777,-166.666666,0.00028481,2]
[327008044,1715709033786,-166.200272,0.00028986,2]
[327008046,1715709033795,-226.59667313,0.00029151,2]
[327008048,1715709033804,-166.666666,0.00029181,2]
[327008050,1715709033814,-154.79876161,0.00029998,2]
[327008052,1715709033823,-500.0,0.00029999,2]
[327008054,1715709033833,-500.0,0.00029999,2]
[327008056,1715709033845,-500.0,0.00029999,2]
[327008058,1715709033854,-500.0,0.00029999,2]
[327008060,1715709033863,-500.0,0.00029999,2]
[327008062,1715709033872,-500.0,0.00029999,2]
[327008064,1715709033883,-350.0,0.00029999,2]
[327008066,1715709033892,-500.0,0.00029999,2]
[327008068,1715709033901,-500.0,0.00029999,2]
[327008070,1715709033912,-500.0,0.00029999,2]
[327008072,1715709033923,-500.0,0.00029999,2]
[327008074,1715709033932,-17216.59159384,0.0003,10]
[327008076,1715709033941,-216.0,0.0003,2]
[327008078,1715709033950,-35654.48332886,0.0003,2]
[327008080,1715709033959,-159.29570288,0.00031251,4]
[327008082,1715709033968,-1361.59113448,0.000315,4]
[327008084,1715709033977,-160.0,0.000322,6]
[327008086,1715709033986,-162.66,0.00032845,3]
[327008088,1715709033995,-488.02,0.00032845,3]
[327008090,1715709034004,-181.27078502,0.00032865,2]
[327008092,1715709034013,-273.56013292,0.00032865,2]
[327008094,1715709034022,-384.44634131,0.00032865,2]
[327008096,1715709034031,-500.0,0.00032865,2]
[327008098,1715709034040,-587.37737419,0.00032865,2]
[327008100,1715709034049,-12758.46380531,0.00032866,3]
[327008145,1715709041145,-500.0,0.00029999,2]
[327008146,1715709041154,-36.0,0.00032856,3]
[327008147,1715709041167,-17101.37,0.00032856,3]
[327008148,1715709041176,-35654.48332886,0.00032865,2]
[327008149,1715709041185,-11919.35619469,0.00032866,3]
[327008150,1715709041194,-20564.85,0.00032866,3]
[327008151,1715709041204,-13687.20800994,0.00032876,5]
[327008152,1715709041213,-500.0,0.00032876,2]
[327008153,1715709041223,-502.11,0.00032876,2]
[327008154,1715709041231,-500.0,0.00032876,2]
[327008155,1715709041241,-500.0,0.00032876,2]
[327008156,1715709041250,-500.0,0.00032876,2]
[327008157,1715709041259,-500.0,0.00032876,2]
[327008158,1715709041268,-500.0,0.00032876,2]
[327008159,1715709041277,-1188.92,0.00032876,2]
[327008160,1715709041287,-500.0,0.00032876,2]
[327008161,1715709041296,-500.0,0.00032876,2]
[327008162,1715709041307,-1733.62,0.00032876,2]
[327008163,1715709041316,-500.0,0.00032876,2]
[327008164,1715709041326,-500.0,0.00032876,2]
[327008165,1715709041335,-500.0,0.00032876,2]
[327008166,1715709041344,-500.0,0.00032876,2]
[327008167,1715709041352,-500.0,0.00032876,2]
[327008168,1715709041362,-960.58,0.00032876,2]
[327008169,1715709041371,-500.0,0.00032876,2]
[327008170,1715709041381,-1331.1,0.00032876,2]
[327008171,1715709041390,-743.56,0.00032876,2]
[327008172,1715709041399,-500.0,0.00032876,2]
[327008173,1715709041408,-500.0,0.00032876,2]
[327008174,1715709041419,-500.0,0.00032876,2]
[327008175,1715709041428,-500.0,0.00032876,2]
[327008176,1715709041437,-500.0,0.00032876,2]
[327008177,1715709041447,-500.0,0.00032876,2]
[327008178,1715709041455,-504.89431995,0.00032876,2]
[327008179,1715709041465,-500.0,0.00032876,2]
[327008180,1715709041476,-1651.11,0.00032876,2]
[327008181,1715709041486,-1072.25,0.00032876,2]
[327008182,1715709041495,-500.0,0.00032876,2]
[327008183,1715709041504,-554.52739146,0.00032876,2]
[327008184,1715709041514,-500.0,0.00032876,2]
[327008185,1715709041523,-500.0,0.00032876,2]
[327008186,1715709041532,-1160.79,0.00032876,2]
[327008187,1715709041542,-285.8114571,0.00032876,2]
[327008188,1715709041551,-3562.83,0.00032876,2]
[327008189,1715709041560,-500.0,0.00032876,2]
[327008190,1715709041570,-1736.94,0.00032876,2]
[327008191,1715709041579,-500.0,0.00032876,2]
[327008192,1715709041588,-3186.28,0.00032876,2]
[327008193,1715709041598,-500.0,0.00032876,2]
[327008194,1715709041607,-870.09,0.00032876,2]
[327008195,1715709041617,-500.0,0.00032876,2]
[327008196,1715709041626,-500.0,0.00032876,2]
[327008197,1715709041635,-500.0,0.00032876,2]
[327008198,1715709041644,-574.14,0.00032876,2]
[327008199,1715709041654,-500.0,0.00032876,2]
[327008200,1715709041664,-1529.04,0.00032876,2]
[327008201,1715709041674,-500.0,0.00032876,2]
[327008202,1715709041683,-321.98889824,0.00032876,2]
[327008203,1715709041692,-500.0,0.00032876,2]
[327008204,1715709041701,-500.0,0.00032876,2]
[327008205,1715709041710,-500.0,0.00032876,2]
[327008206,1715709041720,-500.0,0.00032876,2]
[327008207,1715709041729,-700.51,0.00032876,2]
[327008208,1715709041738,-6454.53,0.00032876,2]
[327008209,1715709041747,-845.71,0.00032876,2]
[327008210,1715709041757,-500.0,0.00032876,2]
[327008211,1715709041766,-500.0,0.00032876,2]
[327008212,1715709041775,-2981.37,0.00032876,2]
[327008213,1715709041784,-500.0,0.00032876,2]
[327008214,1715709041794,-500.0,0.00032876,2]
[327008215,1715709041803,-500.0,0.00032876,2]
[327008216,1715709041812,-1260.54,0.00032876,2]
[327008217,1715709041821,-1264.41,0.00032876,2]
[327008218,1715709041831,-500.0,0.00032876,2]
[327008219,1715709041844,-703.83,0.00032876,2]
[327008220,1715709041854,-500.0,0.00032876,2]
[327008221,1715709041863,-500.0,0.00032876,2]
[327008222,1715709041873,-500.0,0.00032876,2]
[327008223,1715709041883,-1389.97,0.00032876,2]
[327008224,1715709041893,-500.0,0.00032876,2]
[327008225,1715709041901,-1192.49,0.00032876,2]
[327008226,1715709041911,-500.0,0.00032876,2]
[327008227,1715709041922,-1348.65,0.00032876,2]
[327008228,1715709041932,-500.0,0.00032876,2]
[327008229,1715709041941,-500.0,0.00032876,2]
[327008230,1715709041950,-500.0,0.00032876,2]
[327008231,1715709041959,-500.0,0.00032876,2]
[327008232,1715709041968,-529.86258805,0.00032876,2]
[327008233,1715709041978,-500.0,0.00032876,2]
[327008234,1715709041988,-311.43690665,0.00032876,2]
[327008235,1715709041998,-698.88,0.00032876,2]
[327008236,1715709042007,-500.0,0.00032876,2]
[327008237,1715709042017,-1617.05,0.00032876,2]
[327008238,1715709042026,-500.0,0.00032876,2]
[327008239,1715709042036,-500.0,0.00032876,2]
[327008240,1715709042046,-500.0,0.00032876,2]
[327008241,1715709042056,-500.0,0.00032876,2]
[327008242,1715709042066,-927.6,0.00032876,2]
[327008243,1715709042075,-500.0,0.00032876,2]
[327008244,1715709042085,-500.0,0.00032876,2]
[327008245,1715709042095,-1074.36,0.00032876,2]
[327008246,1715709042104,-152.80143447,0.00032876,2]
[327008247,1715709042113,-754.87,0.00032876,2]
[327008248,1715709042123,-642.17742387,0.00032876,2]
[327008249,1715709042132,-500.0,0.00032876,2]
[327008250,1715709042142,-500.0,0.00032876,2]
[327008251,1715709042151,-1744.88,0.00032876,2]
[327008252,1715709042161,-500.0,0.00032876,2]
[327008253,1715709042170,-500.0,0.00032876,2]
[327008254,1715709042179,-189.39868466,0.00032876,2]
[327008255,1715709042189,-1448.83,0.00032876,2]
[327008256,1715709042198,-912.12,0.00032876,2]
[327008257,1715709042208,-970.77,0.00032876,2]
[327008258,1715709042217,-708.41,0.00032876,2]
[327008259,1715709042227,-500.0,0.00032876,2]
[327008260,1715709042236,-500.0,0.00032876,2]
[327008261,1715709042245,-672.88,0.00032876,2]
[327008262,1715709042256,-500.0,0.00032876,2]
[327008263,1715709042266,-500.0,0.00032876,2]
[327008264,1715709042276,-28770.81,0.00032876,2]
[327008265,1715709042286,-500.0,0.00032876,2]
[327008266,1715709042295,-1016.63,0.00032876,2]
[327008267,1715709042305,-500.0,0.00032876,2]
[327008268,1715709042314,-638.63,0.00032876,2]
[327008269,1715709042324,-500.0,0.00032876,2]
[327008270,1715709042334,-293.2421087,0.00032876,2]
[327008271,1715709042345,-500.0,0.00032876,2]
[327008272,1715709042354,-500.0,0.00032876,2]
[327008273,1715709042363,-1411.44,0.00032876,2]
[327008274,1715709042374,-502.13133616,0.00032876,2]
[327008275,1715709042384,-500.0,0.00032876,2]
[327008276,1715709042394,-1391.95,0.00032876,2]
[327008277,1715709042403,-537.63420467,0.00032876,2]
[327008278,1715709042424,-3642.79,0.00032876,2]
[327008279,1715709042434,-802.0,0.00032876,2]
[327008280,1715709042444,-500.0,0.00032876,2]
[327008281,1715709042454,-1401.35,0.00032876,4]
[327008282,1715709042464,-546.00550849,0.00032876,2]
[327008283,1715709042474,-500.0,0.00032876,2]
[327008284,1715709042484,-500.0,0.00032876,2]
[327008285,1715709042494,-884.57,0.00032876,2]
[327008286,1715709042504,-500.0,0.00032876,2]
[327008287,1715709042514,-500.0,0.00032876,2]
[327008288,1715709042524,-500.0,0.00032876,2]
[327008289,1715709042534,-500.0,0.00032876,2]
[327008290,1715709042543,-500.0,0.00032876,2]
[327008291,1715709042553,-500.0,0.00032876,2]
[327008292,1715709042563,-303.46242146,0.00032876,2]
[327008293,1715709042573,-500.0,0.00032876,2]
[327008294,1715709042583,-500.0,0.00032876,2]
[327008295,1715709042796,-1926.0,0.00032876,2]
[327008296,1715709042806,-500.0,0.00032876,2]
[327008297,1715709042816,-2744.96,0.00032876,2]
[327008298,1715709042826,-500.0,0.00032876,2]
[327008299,1715709042838,-500.0,0.00032876,2]
[327008300,1715709042848,-528.37,0.00032876,2]
[327008301,1715709042858,-3272.7,0.00032876,2]
[327008302,1715709042867,-500.0,0.00032876,2]
[327008303,1715709042878,-3782.45,0.00032876,2]
[327008304,1715709042888,-500.0,0.00032876,2]
[327008305,1715709042899,-1543.61,0.00032876,2]
[327008306,1715709042910,-500.0,0.00032876,2]
[327008307,1715709042921,-1959.84,0.00032876,2]
[327008308,1715709042931,-1469.72,0.00032876,2]
[327008309,1715709042940,-910.32,0.00032876,2]
[327008310,1715709042949,-500.0,0.00032876,2]
[327008311,1715709042959,-237.9289935,0.00032876,2]
[327008312,1715709042969,-500.0,0.00032876,2]
[327008313,1715709042978,-500.0,0.00032876,2]
[327008314,1715709042987,-500.0,0.00032876,2]
[327008315,1715709042997,-949.63,0.00032876,2]
[327008316,1715709043006,-1417.59,0.00032876,2]
[327008317,1715709043016,-500.0,0.00032876,2]
[327008318,1715709043025,-500.0,0.00032876,2]
[327008319,1715709043035,-500.0,0.00032876,2]
[327008320,1715709043044,-212.22535697,0.00032876,2]
[327008321,1715709043054,-500.0,0.00032876,2]
[327008322,1715709043064,-500.0,0.00032876,2]
[327008323,1715709043074,-500.0,0.00032876,2]
[327008324,1715709043084,-500.0,0.00032876,2]
[327008325,1715709043093,-5185.58,0.00032876,2]
[327008326,1715709043102,-540.93972771,0.00032876,2]
[327008327,1715709043111,-1394.18,0.00032876,2]
[327008328,1715709043121,-500.0,0.00032876,2]
[327008329,1715709043131,-500.0,0.00032876,2]
[327008330,1715709043140,-500.0,0.00032876,2]
[327008331,1715709043150,-1134.2,0.00032876,2]
[327008332,1715709043159,-2746.75,0.00032876,2]
[327008333,1715709043171,-500.0,0.00032876,2]
[327008334,1715709043181,-504.97760139,0.00032876,2]
[327008335,1715709043194,-500.0,0.00032876,2]
[327008336,1715709043204,-4405.62,0.00032876,2]
[327008337,1715709043213,-500.0,0.00032876,2]
[327008338,1715709043222,-1490.55,0.00032876,2]
[327008339,1715709043231,-1073.01,0.00032876,2]
[327008340,1715709043240,-788.14,0.00032876,2]
[327008341,1715709043250,-500.0,0.00032876,2]
[327008342,1715709043259,-5126.22,0.00032876,2]
[327008344,1715709043269,-500.0,0.00032876,2]
[327008345,1715709043278,-1000.0,0.00032876,2]
[327008346,1715709043288,-4039.12,0.00032876,2]
[327008347,1715709043297,-758.53,0.00032876,2]
[327008348,1715709043307,-500.0,0.00032876,2]
[327008349,1715709043317,-500.0,0.00032876,2]
[327008350,1715709043326,-500.0,0.00032876,2]
[327008351,1715709043336,-500.0,0.00032876,2]
[327008352,1715709043345,-392.80902258,0.00032876,2]
[327008353,1715709043355,-500.0,0.00032876,2]
[327008354,1715709043364,-500.0,0.00032876,2]
[327008355,1715709043374,-699.69,0.00032876,2]
[327008356,1715709043384,-439.39706934,0.00032876,2]
[327008358,1715709043393,-1117.87,0.00032876,2]
[327008360,1715709043402,-500.0,0.00032876,2]
[327008362,1715709043411,-500.0,0.00032876,2]
[327008364,1715709043422,-519.67754611,0.00032876,2]
[327008366,1715709043431,-500.0,0.00032876,2]
[327008368,1715709043441,-647.03,0.00032876,2]
[327008370,1715709043451,-1254.49,0.00032876,2]
[327008372,1715709043460,-703.73,0.00032876,2]
[327008374,1715709043469,-500.0,0.00032876,2]
[327008376,1715709043480,-500.0,0.00032876,2]
[327008378,1715709043490,-8808.25,0.00032876,2]
[327008380,1715709043500,-1212.92,0.00032876,2]
[327008382,1715709043510,-2329.24,0.00032876,2]
[327008384,1715709043522,-1162.06,0.00032876,2]
[327008385,1715709043531,-5277.86,0.00032876,2]
[327008387,1715709043542,-500.0,0.00032876,2]
[327008388,1715709043551,-1533.33,0.00032876,2]
[327008391,1715709043561,-500.0,0.00032876,2]
[327008394,1715709043571,-1772.27,0.00032876,2]
[327008398,1715709043580,-500.0,0.00032876,2]
[327008402,1715709043591,-500.0,0.00032876,2]
[327008406,1715709043601,-2189.49,0.00032876,2]
[327008409,1715709043610,-300.0,0.00032876,2]
[327008411,1715709043619,-500.0,0.00032876,2]
[327008414,1715709043629,-500.0,0.00032876,2]
[327008417,1715709043639,-7803.06,0.00032876,2]
[327008420,1715709043648,-849.65,0.00032876,2]
[327008423,1715709043657,-540.78,0.00032876,2]
[327008425,1715709043667,-500.0,0.00032876,2]
[327008427,1715709043678,-500.0,0.00032876,2]
[327008429,1715709043687,-500.0,0.00032876,2]
[327008431,1715709043697,-706.7,0.00032876,2]
[327008433,1715709043707,-750.54,0.00032876,2]
[327008435,1715709043716,-634.45,0.00032876,2]
[327008438,1715709043725,-500.0,0.00032876,2]
[327008440,1715709043735,-500.0,0.00032876,2]
[327008442,1715709043745,-933.69,0.00032876,2]
[327008444,1715709043755,-510.46,0.00032876,2]
[327008445,1715709043764,-536.59569366,0.00032876,2]
[327008446,1715709043775,-500.0,0.00032876,2]
[327008447,1715709043785,-676.59,0.00032876,2]
[327008448,1715709043795,-500.0,0.00032876,2]
[327008449,1715709043805,-500.0,0.00032876,2]
[327008450,1715709043814,-500.0,0.00032876,2]
[327008451,1715709043824,-500.0,0.00032876,2]
[327008452,1715709043836,-801.88,0.00032876,2]
[327008453,1715709043846,-500.0,0.00032876,2]
[327008454,1715709043856,-500.0,0.00032876,2]
[327008455,1715709043866,-500.0,0.00032876,2]
[327008456,1715709043878,-1527.07,0.00032876,2]
[327008458,1715709043888,-356.76766253,0.00032876,2]
[327008459,1715709043897,-500.0,0.00032876,2]
[327008461,1715709043907,-500.0,0.00032876,2]
[327008462,1715709043918,-500.0,0.00032876,2]
[327008463,1715709043928,-500.0,0.00032876,2]
[327008464,1715709043937,-6953.93,0.00032876,2]
[327008466,1715709043948,-4554.18,0.00032876,2]
[327008467,1715709043958,-713.88,0.00032876,2]
[327008468,1715709043967,-500.0,0.00032876,2]
[327008469,1715709043977,-505.56403449,0.00032876,2]
[327008470,1715709043987,-500.0,0.00032876,2]
[327008471,1715709043997,-500.0,0.00032876,2]
[327008472,1715709044006,-500.0,0.00032876,2]
[327008473,1715709044017,-3946.8,0.00032876,2]
[327008474,1715709044029,-500.0,0.00032876,2]
[327008475,1715709044039,-500.0,0.00032876,2]
[327008476,1715709044049,-568.82716055,0.00032876,2]
[327008477,1715709044059,-3958.76,0.00032876,2]
[327008478,1715709044068,-500.0,0.00032876,2]
[327008479,1715709044078,-500.0,0.00032876,2]
[327008480,1715709044088,-508.79226129,0.00032876,2]
[327008482,1715709044097,-733.58,0.00032876,2]
[327008484,1715709044107,-500.0,0.00032876,2]
[327008486,1715709044116,-653.47,0.00032876,2]
[327008488,1715709044125,-630.62,0.00032876,2]
[327008490,1715709044134,-500.0,0.00032876,2]
[327008492,1715709044143,-500.0,0.00032876,2]
[327008494,1715709044153,-500.0,0.00032876,2]
[327008496,1715709044162,-500.0,0.00032876,2]
[327008498,1715709044171,-1577.93,0.00032876,2]
[327008500,1715709044180,-737.38,0.00032876,2]
[327008502,1715709044189,-2512.59,0.00032876,2]
[327008504,1715709044198,-500.0,0.00032876,2]
[327008506,1715709044207,-952.57,0.00032876,2]
[327008508,1715709044217,-2243.33,0.00032876,2]
[327008510,1715709044226,-500.0,0.00032876,2]
[327008512,1715709044235,-500.0,0.00032876,2]
[327008514,1715709044245,-668.05,0.00032876,2]
[327008516,1715709044255,-297.42688912,0.00032876,2]
[327008518,1715709044265,-500.0,0.00032876,2]
[327008520,1715709044274,-3669.16,0.00032876,2]
[327008522,1715709044283,-469.89141038,0.00032876,2]
[327008524,1715709044292,-500.0,0.00032876,2]
[327008526,1715709044302,-500.0,0.00032876,2]
[327008527,1715709044312,-899.69,0.00032876,2]
[327008529,1715709044321,-1090.57,0.00032876,2]
[327008531,1715709044331,-500.0,0.00032876,2]
[327008533,1715709044340,-500.0,0.00032876,2]
[327008535,1715709044349,-1674.8,0.00032876,2]
[327008537,1715709044358,-661.18,0.00032876,2]
[327008540,1715709044367,-500.0,0.00032876,2]
[327008542,1715709044377,-500.0,0.00032876,2]
[327008544,1715709044387,-500.0,0.00032876,2]
[327008546,1715709044396,-500.0,0.00032876,2]
[327008548,1715709044405,-501.05311909,0.00032876,2]
[327008550,1715709044414,-500.0,0.00032876,2]
[327008552,1715709044424,-500.0,0.00032876,2]
[327008554,1715709044433,-500.0,0.00032876,2]
[327008556,1715709044443,-1000.0,0.00032876,2]
[327008558,1715709044452,-500.0,0.00032876,2]
[327008560,1715709044461,-4675.25,0.00032876,2]
[327008562,1715709044471,-5271.63,0.00032876,2]
[327008564,1715709044480,-933.18,0.00032876,2]
[327008566,1715709044489,-500.0,0.00032876,2]
[327008568,1715709044498,-500.0,0.00032876,2]
[327008570,1715709044507,-500.0,0.00032876,2]
[327008572,1715709044517,-151.0,0.00032876,2]
[327008574,1715709044526,-500.0,0.00032876,2]
[327008576,1715709044535,-3717.67,0.00032876,2]
[327008579,1715709044554,-500.0,0.00032876,2]
[327008581,1715709044566,-500.0,0.00032876,2]
[327008583,1715709044576,-500.0,0.00032876,2]
[327008585,1715709044587,-22634.95,0.00032876,2]
[327008587,1715709044596,-590.0,0.00032876,2]
[327008589,1715709044606,-500.0,0.00032876,2]
[327008591,1715709044616,-500.0,0.00032876,2]
[327008593,1715709044627,-500.0,0.00032876,2]
[327008595,1715709044636,-517.21851212,0.00032876,2]
[327008597,1715709044647,-500.0,0.00032876,2]
[327008599,1715709044656,-86393.52,0.00032876,2]
[327008601,1715709044667,-590.692055,0.00032876,2]
[327008603,1715709044677,-500.0,0.00032876,2]
[327008605,1715709044686,-500.0,0.00032876,2]
[327008607,1715709044696,-998.81,0.00032876,2]
[327008609,1715709044706,-6613.85,0.00032876,2]
[327008611,1715709044715,-500.0,0.00032876,2]
[327008613,1715709044725,-1120.98,0.00032876,2]
[327008615,1715709044735,-500.0,0.00032876,2]
[327008618,1715709044745,-500.0,0.00032876,2]
[327008620,1715709044755,-777.66,0.00032876,2]
[327008622,1715709044764,-644.87,0.00032876,2]
[327008624,1715709044774,-500.0,0.00032876,2]
[327008625,1715709044784,-500.0,0.00032876,2]
[327008628,1715709044794,-500.0,0.00032876,2]
[327008630,1715709044804,-22914.95,0.00032876,2]
[327008632,1715709044814,-10060.89,0.00032876,2]
[327008633,1715709044824,-500.0,0.00032876,2]
[327008635,1715709044835,-500.0,0.00032876,2]
[327008637,1715709044845,-500.0,0.00032876,2]
[327008639,1715709044854,-2255.55,0.00032876,2]
[327008641,1715709044864,-500.0,0.00032876,2]
[327008643,1715709044874,-500.0,0.00032876,2]
[327008645,1715709044883,-500.0,0.00032876,2]
[327008664,1715709045056,-511.05652789,0.00032876,2]
[327008667,1715709045068,-500.0,0.00032876,2]
[327008668,1715709045078,-507.67699923,0.00032876,2]